Cogmind - Beta 14 @@@ ROGUE MODE // 2024.09.20 @ 21:23:38 Player: rice Result: Core destroyed Performance ------------- Evolutions (3) 1500 Regions Visited (7) 1400 Robots Destroyed (58) 290 Value Destroyed (1996) 1996 Prototype IDs (25) 500 Alien Tech Used (0) 0 Bonus (860) 860 TOTAL SCORE: 6546 Bonus ------- Follower Combat Kills 60 Entered DSFs 500 Aligned with FarCom 300 Cogmind --------- Core Integrity 0/700 Matter 30/300 Energy 87/275 System Corruption 0% Temperature Critical (1587) Movement Treading (160) Location -7/DSF Parts ------- > --- POWER (1) -------- Deuterium Engine > --- PROPULSION (4) --- Medium Treads Medium Treads Medium Treads Medium Treads > --- UTILITY (5) ------ Improved Heat Sink Huge Storage Unit Hardened Medium Armor Plating Shield Generator Hacking Suite > --- WEAPON (3) ------- Minigun Minigun Minigun > --- INVENTORY (25) --- Deuterium Engine Light Treads Light Treads Light Treads Light Treads Improved Treads Armored Treads Compact Matter Pod (22) 0b10 Alert Chip Hardened Medium Armor Plating Improved Light Armor Plating Hacking Suite Hacking Suite System Shield High-powered Tractor Beam Beamcaster Minigun Minigun Minigun Minigun Minigun Minigun Enhanced Autogun Grenade Launcher Heavy Flail Peak State ------------ > --- POWER ------------ Deuterium Engine > --- PROPULSION ------- Medium Treads Medium Treads Medium Treads Medium Treads > --- UTILITY ---------- Improved Heat Sink Huge Storage Unit Hardened Medium Armor Plating Shield Generator Hacking Suite > --- WEAPON ----------- Minigun Minigun Minigun > --- INVENTORY -------- Deuterium Engine Light Treads Light Treads Light Treads Light Treads Improved Treads Armored Treads Compact Matter Pod 0b10 Alert Chip Hardened Medium Armor Plating Improved Light Armor Plating Hacking Suite Hacking Suite System Shield High-powered Tractor Beam Beamcaster Minigun Minigun Minigun Minigun Minigun Minigun Enhanced Autogun Grenade Launcher Heavy Flail [Rating: 47] Favorites ----------- Power Ion Engine Engine Ion Engine Power Core Light Nuclear Core Propulsion Light Treads Treads Light Treads Leg Aluminum Leg Utility Huge Storage Unit Device Improved Heat Sink Storage Huge Storage Unit Hackware Hacking Suite Protection Hardened Light Armor Plating Weapon Assault Rifle Energy Gun Medium Laser Ballistic Gun Assault Rifle Build | -11 -10 -10 -10 -9 -8 -7 -7 ------- Run | Yrd Mat Min Exi Min Mat Fac DSF Slots Evolved 6 | . . . . . 4 2 . Power . | . . . . . . . . Propulsion 2 | . . . . . 2 . . Utility 3 | . . . . . 1 2 . Weapon 1 | . . . . . 1 . . Parts Attached 67 | 7 13 1 . 3 23 3 17 Power 7 | 2 1 . . 1 2 1 . Engine 6 | 2 1 . . 1 1 1 . Core 1 | . . . . . 1 . . Reactor . | . . . . . . . . Propulsion 24 | 2 5 . . . 7 . 10 Treads 19 | . 2 . . . 7 . 10 Leg 5 | 2 3 . . . . . . Wheel . | . . . . . . . . Hover . | . . . . . . . . Flight . | . . . . . . . . Utility 16 | 1 3 1 . 2 5 2 2 Device 9 | . 2 1 . 2 3 . 1 Storage 2 | 1 1 . . . . . . Processor . | . . . . . . . . Hackware 1 | . . . . . . 1 . Protection 4 | . . . . . 2 1 1 Artifact . | . . . . . . . . Weapon 20 | 2 4 . . . 9 . 5 Energy Gun 1 | 1 . . . . . . . Energy Cannon . | . . . . . . . . Ballistic Gun 19 | 1 4 . . . 9 . 5 Ballistic Cannon . | . . . . . . . . Launcher . | . . . . . . . . Special Weapon . | . . . . . . . . Impact Weapon . | . . . . . . . . Slashing Weapon . | . . . . . . . . Piercing Weapon . | . . . . . . . . Special Melee Weapon . | . . . . . . . . Unidentified Prototypes 2 | . . . . 1 1 . . Parts Lost 9 | . . . . . 4 . 5 Power . | . . . . . . . . Propulsion 6 | . . . . . 3 . 3 Utility 2 | . . . . . 1 . 1 Weapon 1 | . . . . . . . 1 Highest Loss Streak 4 | . . . . . 2 . 4 To Critical Strikes . | . . . . . . . . Average Slot Usage (%) 99 | . 98 100 100 100 99 100 97 Engine 10 | . 14 14 14 14 5 7 7 Core 1 | . . . . . 3 . . Treads 29 | . 21 28 28 28 35 30 28 Leg 1 | . 6 . . . . . . Device 12 | . 13 14 14 14 8 7 12 Storage 12 | . 14 14 14 14 9 7 7 Protection 3 | . . . . . 8 15 8 Ballistic Gun 26 | . 24 28 28 28 27 23 23 Peak Build Rating 47 | 6 9 12 12 18 29 33 47 Average Rating 16 | 4 7 11 12 12 24 32 33 On Entrance 14 | . 6 9 12 12 14 29 33 Naked Turns . | . . . . . . . . Heaviest Build 109 | 13 90 90 90 92 105 103 109 Greatest Support 112 | 20 40 40 40 40 80 80 112 Greatest Overweight (x) 4 | . 4 2 2 2 1 1 2 Average Overweight (x) 1 | . 1 2 2 2 1 1 . Largest Inventory Capacity 25 | 8 25 25 25 25 25 25 25 Average Capacity 24 | 6 20 25 25 25 25 25 25 Most Carried 25 | 3 19 22 23 25 25 24 25 Average Carried 20 | 1 12 21 22 22 23 22 21 Final Capacity 25 | 8 25 25 25 25 25 25 25 Final Carried 25 | 3 19 22 23 23 25 23 25 Class Distribution -------------------- 63% | Mutant 22% | Tank 12% | Skirmisher Dominant Class ---------------- Mutant | -10/Materials Mutant | -10/Mines Mutant | -10/Exiles Mutant | -9/Mines Tank | -8/Materials Tank | -7/Factory Tank | -7/DSF Resources | -11 -10 -10 -10 -9 -8 -7 -7 ----------- Run | Yrd Mat Min Exi Min Mat Fac DSF Matter Collected 2126 | 186 434 64 . 30 960 . 452 Remotely 204 | . . . . . 204 . . Salvage Created 2406 | . 467 123 . . 1263 . 553 Parts 138 | . 24 7 . . 80 . 27 Haulers Intercepted 2 | . 1 . . . 1 . . Recyclers Shooed 1 | . 1 . . . . . . Parts Field Recycled . | . . . . . . . . Retrieved Matter . | . . . . . . . . Parts Self-Destructed . | . . . . . . . . Prevented . | . . . . . . . . Kills | -11 -10 -10 -10 -9 -8 -7 -7 ------- Run | Yrd Mat Min Exi Min Mat Fac DSF Combat Hostiles Destroyed 45 | . 8 5 . . 22 . 10 Guns 45 | . 8 5 . . 22 . 10 Classes Destroyed 14 | . 4 1 . . 6 . 3 Worker 1 | . . . . . 1 . . Builder 1 | . . . . . 1 . . Hauler 2 | . 1 . . . 1 . . Recycler 2 | . . . . . 2 . . Operator 3 | . 1 . . . 2 . . Watcher 4 | . 2 . . . 2 . . Swarmer 7 | . . 3 . . 4 . . Grunt 26 | . 8 2 . . 11 . 5 Brawler 1 | . . . . . . . 1 Duelist 1 | . . . . . 1 . . Sentry 5 | . . . . . 5 . . Specialist 3 | . . . . . . . 3 Hunter 1 | . . . . . 1 . . Heavy 1 | . . . . . . . 1 Best Kill Streak 8 | . 3 3 . . 8 . 4 Combat Bots Only 7 | . 2 3 . . 7 . 4 Max Kills in Single Turn 2 | . 1 1 . . 2 . 2 Gunslinging . | . . . . . . . . Exploded . | . . . . . . . . Melee . | . . . . . . . . Uniques/NPCs Destroyed . | . . . . . . . . Combat | -11 -10 -10 -10 -9 -8 -7 -7 -------- Run | Yrd Mat Min Exi Min Mat Fac DSF Hostile Shots Fired 281 | . 53 16 . 6 93 . 113 Missed 64 | . 10 4 . 3 15 . 32 Damage Taken 3693 | . 566 105 . 46 1034 . 1942 Core 950 | . 100 10 . . 113 . 727 Absorbed by Shields 355 | . . . . . 139 . 216 Redirected to Shielding 33 | . . . . . . . 33 Regen/Repaired (Parts) 179 | . 113 . . . 66 . . Core Remaining (%) 78 | 100 . . . 56 79 . . Volleys Fired 168 | . 55 9 . . 70 . 34 Largest 3 | . 2 2 . . 3 . 3 Hottest 75 | . 70 40 . . 75 . 75 Shots Fired 438 | . 110 18 . . 210 . 100 Gun 438 | . 110 18 . . 210 . 100 Cannon . | . . . . . . . . Launcher . | . . . . . . . . Special . | . . . . . . . . Kinetic 417 | . 89 18 . . 210 . 100 Thermal 21 | . 21 . . . . . . Explosive . | . . . . . . . . Electromagnetic . | . . . . . . . . Robot Hit Streak 17 | . 17 9 . . 12 . 15 Robot Miss Streak 3 | . 2 2 . . 3 . 2 Penetration Max . | . . . . . . . . Secondary Targets 3 | . . . . . 1 . 2 Max Gunslinging Chain 1 | . . . . . 1 . 1 Shots Hit Robots 299 | . 79 11 . . 130 . 79 Core Hits 112 | . 28 5 . . 57 . 22 Critical Kills 1 | . . . . . . . 1 Critical Parts Destroyed 5 | . 1 . . . 3 . 1 Critical Strikes 6 | . 1 . . . 3 . 2 Destroy 6 | . 1 . . . 3 . 2 Melee Attacks . | . . . . . . . . Impact . | . . . . . . . . Slashing . | . . . . . . . . Piercing . | . . . . . . . . Sneak Attacks . | . . . . . . . . Combat Hostiles . | . . . . . . . . Follow-up Attacks . | . . . . . . . . Damage Inflicted 4554 | . 965 136 . 5 2072 . 1376 Guns 4524 | . 965 136 . . 2047 . 1376 Cannons . | . . . . . . . . Explosions . | . . . . . . . . Melee . | . . . . . . . . Ramming 30 | . . . . 5 25 . . Kinetic 4315 | . 756 136 . . 2047 . 1376 Thermal 209 | . 209 . . . . . . Explosive . | . . . . . . . . Electromagnetic . | . . . . . . . . Impact . | . . . . . . . . Slashing . | . . . . . . . . Piercing . | . . . . . . . . Highest Corruption . | . . . . . . . . Average Corruption . | . . . . . . . . Corruption Purged . | . . . . . . . . Corruption Blocked . | . . . . . . . . Overload Shots . | . . . . . . . . Overflow Damage . | . . . . . . . . Projectiles . | . . . . . . . . Explosions . | . . . . . . . . Melee . | . . . . . . . . Knockbacks . | . . . . . . . . Impact . | . . . . . . . . Kinetic . | . . . . . . . . Secondary . | . . . . . . . . Self-Inflicted Damage . | . . . . . . . . Shots . | . . . . . . . . Rammed 4 | . 1 . . 1 2 . . Targets Rammed 6 | . 1 . . 1 4 . . Kicked . | . . . . . . . . Crushed 2 | . . . . . 2 . . Highest Temperature 1587 | . 38 . . . 442 . 1587 Average Temperature 180 | . 13 . . . 91 . 545 Received Heat Transfer 1245 | . 351 9 . 18 451 . 416 Effects 30 | . . . . . 2 . 28 Shutdowns 5 | . . . . . 1 . 4 Energy Bleed 4 | . . . . . 1 . 3 Matter Decay 6 | . . . . . . . 6 Short Circuit 1 | . . . . . . . 1 Damage (major) 9 | . . . . . . . 9 Damage (core) 5 | . . . . . . . 5 Siege Activations . | . . . . . . . . Robots Corrupted . | . . . . . . . . Combat Hostiles . | . . . . . . . . Parts Fried . | . . . . . . . . Impact Corruptions . | . . . . . . . . Robots Melted . | . . . . . . . . Combat Hostiles . | . . . . . . . . Parts Melted . | . . . . . . . . Heat Transferred 592 | . 592 . . . . . . Parts Sabotaged . | . . . . . . . . Parts Stolen . | . . . . . . . . Parts Stripped . | . . . . . . . . Power Chain Reactions . | . . . . . . . . Alert | -11 -10 -10 -10 -9 -8 -7 -7 ------- Run | Yrd Mat Min Exi Min Mat Fac DSF Peak Influence 322 | . 212 84 . . 322 134 303 Initial 130 | . . 1 . . . 130 93 Average 76 | . 69 30 . . 115 133 205 Maximum Alert Level 1 | . 1 . . . 1 . 1 Low Security (%) 88 | 100 98 100 . 100 76 100 40 Level 1 11 | . 1 . . . 23 . 59 Level 2 . | . . . . . . . . Level 3 . | . . . . . . . . Level 4 . | . . . . . . . . Level 5 . | . . . . . . . . High Security . | . . . . . . . . Max Security . | . . . . . . . . Sterilizations 1 | . . . . . . . 1 Squads Dispatched 5 | . 1 . . . 2 . 2 Investigation . | . . . . . . . . Extermination . | . . . . . . . . Reinforcement 5 | . 1 . . . 2 . 2 Assault . | . . . . . . . . Garrison . | . . . . . . . . Intercept . | . . . . . . . . Searches Triggered . | . . . . . . . . Construction Impeded . | . . . . . . . . Haulers Reinforced . | . . . . . . . . Active Scanning Responses . | . . . . . . . . Cargo Convoy Interrupts . | . . . . . . . . Stealth | -11 -10 -10 -10 -9 -8 -7 -7 --------- Run | Yrd Mat Min Exi Min Mat Fac DSF Distress Signals 6 | . 4 . . . 2 . . Communications Jammed . | . . . . . . . . Distress Signals . | . . . . . . . . Times Spotted 81 | . 26 7 . 2 32 . 14 Peak Tracking Total 9 | . 5 3 . 2 9 . 5 Tactical Retreats 5 | . 4 . . . . . 1 Traps | -11 -10 -10 -10 -9 -8 -7 -7 ------- Run | Yrd Mat Min Exi Min Mat Fac DSF Traps Triggered 3 | . 1 . . . 1 . 1 Indirectly . | . . . . . . . . Trap Hack Attempts . | . . . . . . . . Triggered . | . . . . . . . . Disarmed . | . . . . . . . . Reprogrammed . | . . . . . . . . Reused . | . . . . . . . . Traps Extracted . | . . . . . . . . Installed . | . . . . . . . . Triggered . | . . . . . . . . Machines | -11 -10 -10 -10 -9 -8 -7 -7 ---------- Run | Yrd Mat Min Exi Min Mat Fac DSF Machines Disabled 2 | . . . . . 2 . . Max in Single Turn 1 | . . . . . 1 . . Machines Repaired . | . . . . . . . . Machines Dismantled . | . . . . . . . . Machines Sabotaged . | . . . . . . . . Overloaded Fab Kills . | . . . . . . . . Hacking | -11 -10 -10 -10 -9 -8 -7 -7 --------- Run | Yrd Mat Min Exi Min Mat Fac DSF Machines Accessed 16 | . 7 1 2 . 5 1 . Terminals 11 | . 6 1 . . 3 1 . Fabricators . | . . . . . . . . Repair Stations 3 | . 1 . . . 2 . . Recycling Units . | . . . . . . . . Scanalyzers . | . . . . . . . . Garrison Access . | . . . . . . . . Total Hacks 40 | . 21 3 2 . 13 1 . Successful 23 | . 12 1 2 . 7 1 . Failed 16 | . 8 2 . . 6 . . Catastrophic 2 | . 2 . . . . . . Database Lockouts 1 | . 1 . . . . . . Manual 26 | . 14 2 1 . 9 . . Terminals 29 | . 17 3 . . 8 1 . Fabricators . | . . . . . . . . Repair Stations 9 | . 4 . . . 5 . . Recycling Units . | . . . . . . . . Scanalyzers . | . . . . . . . . Garrison Access . | . . . . . . . . Terminal Hacks 9 | . 3 1 2 . 2 1 . Record 1 | . . . 1 . . . . Robot Analysis 3 | . 1 . . . 2 . . Open DSF 1 | . . . . . . 1 . Branch Access Points 1 | . 1 . . . . . . Unreport Threat 1 | . 1 . . . . . . Dispatch Records 1 | . . 1 . . . . . Derelict Proto ID Bank 1 | . . . 1 . . . . Fabricator Hacks . | . . . . . . . . Repair Station Hacks 7 | . 4 . . . 3 . . Scan Component 4 | . 2 . . . 2 . . Repair 3 | . 2 . . . 1 . . Recycling Unit Hacks . | . . . . . . . . Scanalyzer . | . . . . . . . . Garrison Access Hacks . | . . . . . . . . Unauthorized Hacks 7 | . 5 . . . 2 . . Terminals 7 | . 5 . . . 2 . . Track 1 | . 1 . . . . . . Botnet 4 | . 3 . . . 1 . . Operators 2 | . 1 . . . 1 . . Fabricators . | . . . . . . . . Repair Stations . | . . . . . . . . Recycling Units . | . . . . . . . . Scanalyzers . | . . . . . . . . Garrison Access . | . . . . . . . . Data Cores Recovered . | . . . . . . . . Used . | . . . . . . . . Hacking Detections 11 | . 7 1 . . 3 . . Full Trace Events . | . . . . . . . . Feedback Events . | . . . . . . . . Feedback Blocked . | . . . . . . . . Robot Schematics Acquired . | . . . . . . . . Robots Built . | . . . . . . . . Authchips . | . . . . . . . . Time . | . . . . . . . . Total Robot Build Rating . | . . . . . . . . Part Schematics Acquired . | . . . . . . . . Parts Built . | . . . . . . . . Authchips . | . . . . . . . . Time . | . . . . . . . . Total Part Build Rating . | . . . . . . . . Parts Repaired 3 | . 2 . . . 1 . . Time 78 | . 52 . . . 26 . . Parts Recycled . | . . . . . . . . Recycled Matter . | . . . . . . . . Retrieved Matter . | . . . . . . . . Retrieved Components . | . . . . . . . . Parts Scanalyzed . | . . . . . . . . Part Schematics Acquired . | . . . . . . . . Parts Damaged . | . . . . . . . . Bothacking | -11 -10 -10 -10 -9 -8 -7 -7 ------------ Run | Yrd Mat Min Exi Min Mat Fac DSF Used RIF Installer . | . . . . . . . . Robots Hacked . | . . . . . . . . Non-combat . | . . . . . . . . Combat . | . . . . . . . . Robot Hacks Applied . | . . . . . . . . Relay Couplers Released . | . . . . . . . . Fabnet Peak Effective % . | . . . . . . . . Robots Rewired . | . . . . . . . . Allies Hacked . | . . . . . . . . Hacks Repelled . | . . . . . . . . Allies | -11 -10 -10 -10 -9 -8 -7 -7 -------- Run | Yrd Mat Min Exi Min Mat Fac DSF Total Allies 1 | . . 1 . . . . . Largest Group 1 | . . 1 . . . . . Highest-Rated Group 31 | . . 31 . . . . . Highest-Rated Ally 31 | . . 31 . . . . . Total Orders . | . . . . . . . . Ally Attacks 10 | . . 10 . . . . . Total Damage 147 | . . 147 . . . . . Kills 2 | . . 2 . . . . . Allies Corrupted . | . . . . . . . . Allies Melted . | . . . . . . . . Intel | -11 -10 -10 -10 -9 -8 -7 -7 ------- Run | Yrd Mat Min Exi Min Mat Fac DSF Robot Analysis Total 3 | . 1 . . . 2 . . Derelict Logs Recovered 2 | . . 1 . 1 . . . Drone Launches . | . . . . . . . . Drone Recoveries . | . . . . . . . . Exploration | -11 -10 -10 -10 -9 -8 -7 -7 ------------- Run | Yrd Mat Min Exi Min Mat Fac DSF Turns Passed 9243 | 72 1857 1105 1595 1247 2873 124 370 Spaces Moved 3018 | 54 643 329 499 384 953 50 106 Core 7 | 6 1 . . . . . . Treads 2704 | . 383 329 499 384 953 50 106 Legs 307 | 48 259 . . . . . . Wheels . | . . . . . . . . Hover . | . . . . . . . . Flight . | . . . . . . . . Fastest Speed 50 | 50 120 320 320 320 240 240 160 Average Speed 269 | 112 239 320 320 320 240 240 236 Slowest Speed 320 | 120 320 320 320 320 240 240 320 Overloaded Moves . | . . . . . . . . Propulsion Burnouts . | . . . . . . . . Robots Hopped . | . . . . . . . . Cave-ins Triggered . | . . . . . . . . Exploration Rate (%) 54 | 3 97 75 91 54 54 1 64 Regions Visited 7 Branch Regions 3 Pre-discovered Areas 2 | . . 1 1 . . . . Known Exits Taken 2 | . 1 . . . . 1 . Unknown Exits Taken 5 | 1 . 1 1 1 1 . . Scrap Searched 3 | . . 1 . 2 . . . Spaces Dug . | . . . . . . . . Terrain Destroyed . | . . . . . . . . Melee . | . . . . . . . . Projectile . | . . . . . . . . AOE . | . . . . . . . . Terrain Rammed . | . . . . . . . . Walls Destroyed . | . . . . . . . . Machines Disabled . | . . . . . . . . Actions | -11 -10 -10 -10 -9 -8 -7 -7 --------- Run | Yrd Mat Min Exi Min Mat Fac DSF Total 3817 | 62 851 364 499 404 1415 55 167 Wait 470 | . 118 24 . 4 318 . 6 Move 3011 | 53 642 328 498 383 952 49 106 Hop . | . . . . . . . . Pick Up 54 | 2 17 2 1 6 25 1 . Fast Attach 14 | 6 5 . . . 2 . 1 Attach 16 | . . . . . 8 2 6 Detach . | . . . . . . . . Swap 37 | 1 8 1 . 3 13 1 10 Drop 38 | . 5 . . 7 23 2 1 Fire 168 | . 55 9 . . 70 . 34 Melee . | . . . . . . . . Ram . | . . . . . . . . Kick . | . . . . . . . . Crush 6 | . 1 . . 1 4 . . Escape Stasis 2 | . . . . . . . 2 Rewire 1 | . . . . . . . 1 Trap . | . . . . . . . . Miscellaneous . | . . . . . . . . Route ------- -11/Scrapyard -10/Materials (discovered 5 exits: [*Mat x3] / *Min x2) -10/Mines (discovered 3 exits: [*Mat x2] / *Exi) -10/Exiles -9/Mines -8/Materials -7/Factory -7/DSF (discovered 1 exit: [*Fac]) History --------- Turn | Location | Event 3 | -11/Scrapyard | Discovered new exit (range 16) 73 | -11/Scrapyard | Entered Materials 152 | -10/Materials | Discovered new exit (range 15) 190 | -10/Materials | Discovered new exit (range 5) 303 | -10/Materials | Build established: Mutant 392 | -10/Materials | Discovered new exit (range 8) 610 | -10/Materials | Central database locked down 1004 | -10/Materials | Discovered new exit (range 15) 1068 | -10/Materials | Repaired Assault Rifle 1095 | -10/Materials | Repaired Assault Rifle 1689 | -10/Materials | Discovered new exit (range 16) 1773 | -10/Materials | Identified exit to Mines 1930 | -10/Materials | Entered Mines 1933 | -10/Mines | Received a Mining Laser from a helpful Derelict 1967 | -10/Mines | Discovered new exit (range 5) 2370 | -10/Mines | Learned location of Zion (-7) 2485 | -10/Mines | Deemed a non-threat by the Exiles lab entrance 2489 | -10/Mines | Discovered new exit (range 5) 2764 | -10/Mines | Discovered new exit (range 7) 3035 | -10/Mines | Entered Exiles 3109 | -10/Exiles | Met 8R-AWN 3170 | -10/Exiles | Met EX-HEX 3333 | -10/Exiles | Met EX-BIN 3387 | -10/Exiles | Aligned with FarCom system 3391 | -10/Exiles | Given EX-Vault access code 3464 | -10/Exiles | Opened EX-Vault 3480 | -10/Exiles | Found 0b10 Alert Chip 3545 | -10/Exiles | Warned to stay clear of 0b10 Research branches 3641 | -10/Exiles | Met EX-DEC 3997 | -10/Exiles | Visited The Gauntlet 4601 | -10/Exiles | Discovered new exit (range 11) 4630 | -10/Exiles | Left Exiles lab with 0b10 Alert Chip 4630 | -10/Exiles | Entered Mines 4632 | -9/Mines | Met a Derelict bent on vengeance 4822 | -9/Mines | Discovered new exit (range 13) 4941 | -9/Mines | Found a damaged Exp. Sensor Array with a note attached 4947 | -9/Mines | Found Prototype Device 4947 | -9/Mines | Identified Exp. Sensor Array 5421 | -9/Mines | Learned location of 1 exit from Proximity Caves 5686 | -9/Mines | Joined a pair of Derelicts in attacking an 0b10 outpost 5877 | -9/Mines | Entered Materials 5877 | -8/Materials | Evolved 4 slots: Propulsion x2, Utility x1, Weapon x1 6173 | -8/Materials | Build established: Skirmisher 6629 | -8/Materials | Build established: Tank 8123 | -8/Materials | Destroyed 7 combat bots 8385 | -8/Materials | Build established: Skirmisher 8497 | -8/Materials | Discovered new exit (range 16) 8584 | -8/Materials | Repaired Lgt. Treads 8750 | -8/Materials | Entered Factory 8750 | -7/Factory | Evolved 2 slots: Utility x2 8772 | -7/Factory | Identified exit to DSF 8874 | -7/Factory | Entered DSF 8920 | -7/DSF | Additional patrols routed to DSF 8985 | -7/DSF | Lost 4 parts (2n1u1w) 9092 | -7/DSF | Sterilization system engaged 9112 | -7/DSF | Ambient heat levels rising (+10) 9127 | -7/DSF | Ambient heat levels rising (+10) 9142 | -7/DSF | Ambient heat levels rising (+10) 9157 | -7/DSF | Ambient heat levels rising (+10) 9172 | -7/DSF | Ambient heat levels rising (+10) 9187 | -7/DSF | Ambient heat levels rising (+10) 9202 | -7/DSF | Ambient heat levels rising (+10) 9214 | -7/DSF | Discovered new exit (range 15) 9217 | -7/DSF | Ambient heat levels rising (+10) 9228 | -7/DSF | Core integrity fell below 50% 9232 | -7/DSF | Ambient heat levels rising (+10) 9236 | -7/DSF | Core integrity fell below 20% 9245 | -7/DSF | Core destroyed Last Messages --------------- 09233_ A-02 Transporter heat spikes uncontrollably. 09235_ Dropped Lgt. Treads. 09236_ Overheating: Core damaged (-84). 09237_ A-02 Transporter heat damages Lgt. Treads. 09239_ Overheating: Matter decay (-6). 09239_ A-02 Transporter heat damages Transport Network Coupler, Lgt. Treads. 09240_ Overheating: Matter decay (-7). 09240_ A-02 Transporter heat damages Ion Engine, Lgt. Treads. 09242_ Power failure, Deuterium Engine shutdown. 09242_ Overheating: Minigun damaged (-71). 09242_ Overheating: Imp. Heat Sink damaged (-2). 09242_ Overheating: Med. Treads damaged (-46). 09242_ Overheating: Huge Storage Unit damaged (-375). 09244_ Overheating: Energy bleed (-32). 09245_ Overheating: Core damaged (-98). Map ----- +----------------------------------------------------+ | ??????????????????????[ ????????#[[ ]#??? | | ??????????????????????[ ????????#[[ ]#??? | | ????????????????????### ##???????### ##??? | | ????????????????????#!! !!???????#[[ [#??? | | ????????????????????#!! !????????#[[ [#??? | | ?????????????????????!! !????????#[[ [#??? | | ????????????????###???# #?##########" ###?? | | ????????????# ??#!!!?## ###!!!"!!!#"%" #?? | | ????????? ## #!!!## %#"!!!=!!!""" ### | | ???????? !!!%= [ [[" # | | ???????? *!%** [[### | | ???????? !! [[#?? | | ????????????#***#!!!## ^^%##!!!#!!!##! #?? | | ?????????????????????## ###!!!#!!!## [ #?? | | ????????????????????### ############* ###?? | | ????????????????????#!! [[#??## ##]] * #??? | | ????????????????????#!! [[#??# "%+]]=[ #??? | | ????????????????????#!! [[#?#]]###]]===#??? | | ????????????????????### ###??????### !##??? | | ????????????????????#!! ]]#??????# *!=]#??? | | ????????????????????#!! ]]#??????# =]#??? | | ????????????????#####!! ]]#?###??### ##??? | | ?????????????#??#[[[### ###[[[#??#?# #???? | | ???????"" ##[[#[[[### ###[[[#[[## "???? | | ???????"" ""??? | | ???????""< @ ""#?? | | ??????????""## # # = # #]]##"""""#?? | | ????????????????##### == #?###???#"""""??? | | ????????????????????#########???????##"###??? | | ??????????????????????????????????????"?????? | | ????????????????????????????????????????????? | | ????????????????????????????????????????????? | | ????????????????????????????????????????????? | | ????????????????????????????????????????????? | | ????????????????????????????????????????????? | | ????????????????????????????????????????????? | | | | | | | | | | | | | | | | | | | | | | | | | | | | | +----------------------------------------------------+ Best States ------------- Heat Dissipation 48 Energy Generation 14 Energy Capacity 275 Matter Stores 300 Matter Capacity 300 Sight Range 16 Terrain Scan Density 10 Armor Coverage 225 Utility Shielding 33 Evasion (%) 55 Recoil Reduction 4 Offensive Hacking 10 Item Schematics ----------------- None Robot Schematics ------------------ None Fabricated ------------ Nothing Alien Tech Used ----------------- None Achievements -------------- None Challenges ------------ None Game ------ Seed LauncherBattleAutogun Manual? 0 Play Time 00:38:51 Cumulative 47.9 hours Start 2024.09.20 @ 20:44:04 End 2024.09.20 @ 21:23:38 Sessions 1 Manual Loads 0 Difficulty Rogue Special Mode None Game No. 88 Rogue 88 Adventurer 0 Explorer 0 Win Type - Total 0 Types 0/0/0/0/0/0/0/0/0 Lore% 18 Gallery% 36 Achievement% 32 Wizard Run 0 Options --------- Layout 1 ASCII 0 Keyboard 1 Movement Numpad Keybinds 0 Fullscreen 1 Font 24/Smallcaps Map View 50x35 Zoom Use 0% Tactical HUD 1 Map Filters NONE Filters NONE Steam 1 RUN: fe8e0fa1-e5b7-40c2-8b52-4fb947149c70